bitfinex-derivatives/quotes_SOLF0:USTF0_20250320
["timestamp","ask_amount","ask_price","bid_price","bid_amount"]
[1742477634034,0.05188298,130.25,130.22,0.04892943]
[1742477635044,7.6816,130.23,130.22,0.04892943]
[1742477636241,36.6216,130.23,130.22,0.04892943]
[1742477636839,7.6838,130.2,130.17,46.78326443]
[1742477637042,28.94,130.23,130.19,7.6839]
[1742477637437,36.6219,130.23,130.17,17.84326443]
[1742477637850,28.94,130.23,130.19,17.84326443]
[1742477638048,0.0521543,130.21,130.2,7.6834]
[1742477638244,0.0521543,130.21,130.2,25.52666443]
[1742477638447,36.6803,130.26,130.2,17.84326443]
[1742477638648,29.0,130.26,130.2,17.84326443]
[1742477638949,7.73019937,130.24,130.22,0.05683525]
[1742477639349,0.04889937,130.24,130.22,0.05683525]
[1742477639847,0.04889937,130.24,130.23,7.6816]
[1742477640043,365.0,130.27,130.22,17.90009968]
[1742477640243,29.04,130.3,130.24,17.84326443]
[1742477640448,29.04,130.3,130.22,29.04]
[1742477640639,7.6788,130.28,130.23,17.84326443]
[1742477640844,29.04,130.3,130.23,17.84326443]
[1742477641244,0.05191304,130.28,130.25,0.0539191]
[1742477641951,29.04,130.27,130.25,0.0539191]
[1742477642651,0.05191304,130.28,130.25,0.0539191]
[1742477643251,0.05191304,130.28,130.25,17.89718353]
[1742477643452,0.05191304,130.28,130.27,17.84326443]
[1742477643649,0.05191304,130.28,130.27,25.52246443]
[1742477644455,365.0,130.32,130.27,17.84326443]
[1742477644655,29.02,130.34,130.29,17.84326443]
[1742477644856,2.0066,130.36,130.31,17.84326443]
[1742477645052,41.55258114,130.37,130.31,17.84326443]
[1742477645252,49.22608114,130.37,130.31,28.48356901]
[1742477645454,12.53258114,130.37,130.31,28.48356901]
[1742477645653,7.675,130.35,130.33,0.05211648]
[1742477645856,12.53258114,130.37,130.33,0.05211648]
[1742477646255,7.6751,130.34,130.33,0.05211648]
[1742477646456,29.0,130.35,130.33,0.05211648]
[1742477647357,29.0,130.35,130.27,30.64686901]
[1742477647558,2.0572,130.34,130.28,7.6786]
[1742477647952,2.0572,130.34,130.27,30.64686901]
[1742477648356,1.9949,130.37,130.29,28.48356901]
[1742477648558,0.05211648,130.32,130.29,57.49285613]
[1742477648757,0.05211648,130.32,130.31,7.6767]
[1742477649059,7.674,130.36,130.31,28.48356901]
[1742477649255,7.674,130.36,130.32,7.676]
[1742477649851,28.94,130.38,130.31,28.48356901]
[1742477650160,28.94,130.38,130.33,0.05566114]
[1742477650759,36.5925,130.39,130.35,7.6742]
[1742477650960,28.92,130.4,130.33,30.52506901]
[1742477651159,28.92,130.4,130.36,0.05328218]
[1742477651361,28.94,130.4,130.36,0.05328218]
[1742477651655,2.0171,130.42,130.36,0.05328218]
[1742477651851,28.94,130.41,130.36,0.05328218]
[1742477652255,7.6733,130.37,130.36,0.05328218]
[1742477652854,36.613,130.38,130.36,0.05328218]
[1742477653051,28.94,130.38,130.36,0.05328218]
[1742477653451,7.6733,130.37,130.36,0.05328218]
[1742477654156,36.613,130.38,130.36,0.05328218]
[1742477654863,7.6733,130.37,130.36,0.05328218]
[1742477655961,28.94,130.38,130.3,253.34]
[1742477656160,2.0045,130.36,130.3,253.34]
[1742477656361,28.88,130.35,130.3,253.34]
[1742477656563,28.88,130.35,130.31,7.6764]
[1742477656762,28.88,130.35,130.3,253.34]
[1742477657059,57.36356901,130.35,130.31,0.05749742]
[1742477657258,2.0244,130.34,130.25,253.26]
[1742477657458,7.6767,130.32,130.25,253.26]
[1742477657654,28.98,130.32,130.26,28.48356901]
[1742477657859,30.9844,130.34,130.27,28.96]
[1742477658058,30.9844,130.34,130.29,28.48356901]
[1742477658059,28.96,130.34,130.29,28.48356901]
[1742477658362,0.04961802,130.33,130.3,29.01420995]
[1742477658663,0.04961802,130.33,130.32,7.6763]
[1742477659065,28.98,130.38,130.32,28.48356901]
[1742477659260,2.115,130.4,130.33,28.96]
[1742477659659,28.96,130.41,130.33,28.96]
[1742477660060,2.115,130.43,130.35,28.48356901]
[1742477660260,0.0495309,130.38,130.37,7.673]
[1742477660464,28.96,130.42,130.35,28.48356901]
[1742477660665,7.73007821,130.39,130.36,7.73150194]
[1742477660860,0.05757821,130.39,130.36,0.05790194]
[1742477661260,0.05757821,130.39,130.38,7.6728]
[1742477661559,28.96,130.44,130.36,57.50147095]
[1742477661765,28.96,130.44,130.36,57.44356901]
[1742477661964,28.96,130.44,130.36,28.48356901]
[1742477662365,31.0936,130.44,130.36,28.48356901]
[1742477662567,31.0936,130.44,130.39,0.0569376]
[1742477662767,28.48356901,130.42,130.31,318.38016901]
[1742477662965,28.48356901,130.4,130.31,253.26]
[1742477663166,2.1541,130.39,130.31,253.26]
[1742477663361,28.96,130.38,130.31,253.26]
[1742477663869,28.96,130.37,130.31,253.26]
[1742477664167,0.05586643,130.36,130.33,0.05868078]
[1742477664370,7.73006643,130.36,130.33,0.05868078]
[1742477664567,0.05586643,130.36,130.33,0.05868078]
[1742477665068,7.6751,130.34,130.33,0.05868078]
[1742477665467,36.6151,130.34,130.33,0.05868078]
[1742477666270,7.6774,130.31,130.27,7.6789]
[1742477666573,28.92,130.31,130.27,7.6789]
[1742477666774,7.6775,130.3,130.27,7.6789]
[1742477667066,28.92,130.31,130.26,253.22]
[1742477667269,0.05232053,130.3,130.27,0.05214991]
[1742477667670,0.05232053,130.3,130.27,7.73104991]
[1742477668866,0.05232053,130.3,130.27,0.05214991]
[1742477669675,0.05232053,130.3,130.28,7.6783]
[1742477670268,0.05232053,130.3,130.27,7.73104991]
[1742477670465,0.05232053,130.3,130.27,0.05214991]
[1742477670869,0.05232053,130.3,130.27,7.73114991]
[1742477671370,7.6784,130.29,130.27,0.05214991]
[1742477671576,0.05232053,130.3,130.27,0.05214991]
[1742477672072,0.05232053,130.3,130.29,7.6781]
[1742477672271,393.88,130.34,130.27,28.53571892]
[1742477672476,393.88,130.34,130.32,7.6758]
[1742477672678,28.88,130.34,130.32,7.6758]
[1742477673482,28.93036985,130.34,130.32,0.05437728]
[1742477674375,28.93036985,130.34,130.26,253.22]
[1742477674678,4.111,130.33,130.26,253.22]
[1742477675479,0.05518696,130.31,130.28,0.05455533]
[1742477675676,28.86,130.3,130.28,0.05455533]
[1742477676176,28.84,130.3,130.28,0.05455533]
[1742477676578,36.5178,130.3,130.28,0.05455533]
[1742477676775,28.84,130.3,130.28,0.05455533]
[1742477677676,7.6781,130.29,130.28,0.05455533]
[1742477677877,28.84,130.3,130.25,7.6803]
[1742477678071,28.84,130.3,130.22,28.88]
[1742477678276,28.84,130.3,130.21,286.3112]
[1742477678478,28.84,130.3,130.25,7.6801]
[1742477679181,0.05105131,130.29,130.26,0.05185167]
[1742477679383,7.6791,130.28,130.26,0.05185167]
[1742477679679,28.78,130.27,130.21,255.3938]
[1742477680377,7.6802,130.26,130.21,255.3938]
[1742477680570,7.6802,130.26,130.22,7.6817]
[1742477680771,0.05055237,130.25,130.22,0.05773966]
[1742477680978,0.05055237,130.25,130.23,7.6813]
[1742477681278,0.05055237,130.25,130.22,0.05773966]
[1742477681587,0.05055237,130.25,130.23,7.6816]
[1742477681980,0.05055237,130.25,130.22,0.05773966]
[1742477682174,0.05055237,130.25,130.23,7.6813]
[1742477682885,0.05055237,130.25,130.24,7.681]
[1742477684483,0.05055237,130.25,130.22,0.05773966]
[1742477684881,7.6813,130.24,130.22,0.05773966]
[1742477686188,7.6816,130.23,130.22,0.05773966]
[1742477686982,36.3813,130.24,130.22,0.05773966]
[1742477687181,28.7,130.24,130.22,0.05773966]
[1742477688989,0.05055237,130.25,130.22,0.05773966]
[1742477689190,28.72,130.24,130.23,7.6816]
[1742477689887,28.72,130.24,130.22,7.73963966]
[1742477690189,28.72,130.24,130.22,0.05773966]
[1742477690981,28.72,130.24,130.23,7.6816]
[1742477691183,28.72,130.24,130.22,0.05773966]
[1742477691587,28.72,130.24,130.23,7.6816]
[1742477691991,28.72,130.24,130.22,7.73953966]
[1742477692391,28.72,130.24,130.22,0.05773966]
[1742477692694,36.4013,130.24,130.22,0.05773966]
[1742477692890,28.72,130.24,130.22,0.05773966]
[1742477693286,7.6816,130.23,130.22,0.05773966]
[1742477695295,28.72,130.24,130.22,0.05773966]
[1742477695697,28.72,130.24,130.23,7.6816]
[1742477695995,28.72,130.24,130.22,0.05773966]
[1742477696189,28.72,130.24,130.22,7.73983966]
[1742477696391,28.72,130.24,130.22,0.05773966]
[1742477696694,28.72,130.24,130.22,7.73963966]
[1742477696887,28.72,130.24,130.22,0.05773966]
[1742477697290,28.72,130.24,130.23,7.6816]
[1742477698198,0.05055237,130.25,130.22,0.05773966]
[1742477698700,0.05055237,130.25,130.24,7.681]
[1742477700307,0.05055237,130.25,130.23,25.51546228]
[1742477700496,0.05055237,130.25,130.23,17.83416228]
[1742477701095,0.05055237,130.25,130.22,0.05773966]
[1742477701299,7.6816,130.23,130.22,0.05773966]
[1742477701606,36.2416,130.23,130.22,0.05773966]
[1742477702397,28.56,130.23,130.22,0.05773966]
[1742477703003,28.56,130.23,130.2,7.6831]
[1742477703202,28.56,130.23,130.19,17.83416228]
[1742477703602,28.6,130.25,130.23,7.6813]
[1742477703803,28.6,130.25,130.21,17.83416228]
[1742477704005,0.05331752,130.23,130.21,17.89216366]
[1742477704199,0.05331752,130.23,130.22,7.6822]
[1742477704507,0.05331752,130.23,130.21,17.89216366]
[1742477705205,0.05331752,130.23,130.22,7.6822]
[1742477707405,0.05331752,130.23,130.21,0.05800138]
[1742477708405,0.05331752,130.23,130.22,7.6822]
[1742477709206,0.05331752,130.23,130.21,7.74050138]
[1742477709407,0.05331752,130.23,130.21,0.05800138]
[1742477709609,0.05331752,130.23,130.22,7.6822]
[1742477709808,0.05331752,130.23,130.21,0.05800138]
[1742477710208,0.05331752,130.23,130.22,7.6822]
[1742477710408,28.6,130.27,130.21,46.49216366]
[1742477710606,2.0004,130.29,130.25,17.83416228]
[1742477710803,365.0,130.32,130.25,17.83416228]
[1742477710804,367.1327,130.32,130.25,17.83416228]
[1742477711004,28.6,130.3,130.25,17.83416228]
[1742477711605,0.05685266,130.29,130.27,17.83416228]
[1742477711803,0.05685266,130.29,130.28,7.6786]
[1742477713313,0.05685266,130.29,130.26,0.04860391]
[1742477713911,0.05685266,130.29,130.28,7.6786]
[1742477715511,2.0042,130.36,130.28,28.50923336]
[1742477715715,28.58,130.35,130.28,28.50923336]
[1742477715912,36.2546,130.35,130.28,28.50923336]
[1742477716515,28.58,130.35,130.29,7.6777]
[1742477716816,0.05000458,130.33,130.3,0.05795156]
[1742477717116,7.72620458,130.33,130.3,7.73505156]
[1742477717414,0.05000458,130.33,130.3,0.05795156]
[1742477717914,7.72580458,130.33,130.3,7.73515156]
[1742477718615,0.05000458,130.33,130.3,0.05795156]
[1742477718917,28.56,130.32,130.3,0.05795156]
[1742477719215,7.6769,130.31,130.3,0.05795156]
[1742477719715,36.2365,130.32,130.3,0.05795156]
[1742477720213,28.56,130.32,130.3,7.73495156]
[1742477720415,0.05000458,130.33,130.3,0.05795156]
[1742477720813,4.58e-06,130.33,130.32,7.6763]
[1742477721010,173.72138071,130.41,130.32,28.50923336]
[1742477721222,46.80958114,130.4,130.37,7.673]
[1742477721715,39.13768114,130.4,130.34,57.10923336]
[1742477722319,0.05386875,130.38,130.36,0.05437596]
[1742477722909,0.05386875,130.38,130.36,7.72787596]
[1742477723118,0.05386875,130.38,130.36,0.05437596]
[1742477723517,0.05386875,130.38,130.37,7.6733]
[1742477724119,0.05386875,130.38,130.36,0.05437596]
[1742477724520,0.05386875,130.38,130.37,7.6733]
[1742477724810,0.05386875,130.38,130.36,0.05437596]
[1742477725217,7.6733,130.37,130.36,0.05437596]
[1742477725411,0.05386875,130.38,130.36,0.05437596]
[1742477726621,7.6733,130.37,130.36,0.05437596]
[1742477728428,28.61386875,130.38,130.36,0.05437596]
[1742477729018,0.05386875,130.38,130.36,0.05437596]
[1742477729226,0.05386875,130.38,130.37,7.6733]
[1742477730622,28.54,130.42,130.36,28.56360932]
[1742477730926,28.54,130.42,130.37,281.74]
[1742477731329,365.0,130.43,130.37,281.74]
[1742477731522,28.58,130.46,130.4,28.50923336]
[1742477731722,7.6678,130.47,130.42,7.6703]
[1742477731923,0.05773657,130.44,130.4,57.08923336]
[1742477732118,0.05773657,130.44,130.43,0.05831461]
[1742477732323,0.05773657,130.44,130.43,7.72811461]
[1742477732523,0.05773657,130.44,130.43,0.05831461]
[1742477732729,7.72693657,130.44,130.43,0.05831461]
[1742477733130,0.05773657,130.44,130.43,0.05831461]
[1742477733328,7.72693657,130.44,130.43,0.05831461]
[1742477735223,0.05773657,130.44,130.43,0.05831461]
[1742477735525,0.05773657,130.44,130.43,7.72811461]
[1742477735926,0.05773657,130.44,130.43,0.05831461]
[1742477736824,7.72693657,130.44,130.43,0.05831461]
[1742477737329,0.05773657,130.44,130.37,253.2]
[1742477737534,2.1688,130.43,130.37,253.2]
[1742477737727,28.56,130.42,130.37,253.2]
[1742477738428,0.0568343,130.41,130.38,0.05516274]
[1742477738630,7.6719,130.4,130.38,0.05516274]
[1742477738825,0.0568343,130.41,130.38,0.05516274]
[1742477739630,7.6722,130.39,130.38,0.05516274]
[1742477742033,36.2722,130.39,130.38,0.05516274]
[1742477742528,28.6,130.39,130.38,0.05516274]
[1742477742829,28.6368343,130.41,130.38,0.05516274]
[1742477743227,28.6368343,130.41,130.39,7.672]
[1742477743428,28.6368343,130.41,130.38,17.84217119]
[1742477743634,7.6719,130.4,130.38,17.84217119]
[1742477743936,28.6368343,130.41,130.38,0.05516274]
[1742477744629,36.3083343,130.41,130.38,0.05516274]
[1742477744935,28.6368343,130.41,130.38,0.05516274]
[1742477745132,36.3081343,130.41,130.38,0.05516274]
[1742477745428,28.6368343,130.41,130.38,0.05516274]
[1742477745636,28.6368343,130.41,130.38,17.84217119]
[1742477745834,0.0568343,130.41,130.4,17.78700845]
[1742477746333,0.0568343,130.41,130.4,7.6716]
[1742477747829,0.0568343,130.41,130.39,7.672]
[1742477748035,7.7281343,130.41,130.38,17.84217119]
[1742477748531,7.7281343,130.41,130.38,25.51467119]
[1742477748732,0.0568343,130.41,130.38,17.84217119]
[1742477749132,4.2776,130.47,130.4,17.78700845]
[1742477749335,4.2776,130.47,130.37,257.393]
[1742477749336,36.2881,130.46,130.42,17.78700845]
[1742477749538,28.62,130.46,130.4,17.78700845]
[1742477749739,28.62,130.46,130.38,17.78700845]
[1742477750140,28.62,130.46,130.4,7.6715]
[1742477750344,7.6703,130.43,130.42,0.05428842]
[1742477750638,36.2903,130.43,130.42,0.05428842]
[1742477752730,28.62,130.43,130.38,17.78700845]
[1742477752935,28.62,130.43,130.37,253.2]
[1742477753438,28.62,130.43,130.38,17.78700845]
[1742477753742,28.62,130.43,130.39,7.6719]
[1742477754036,0.05020298,130.42,130.39,0.05316682]
[1742477754641,7.6716,130.4,130.39,0.05316682]
[1742477755033,36.4316,130.4,130.39,0.05316682]
[1742477755340,7.6733,130.38,130.34,17.78700845]
[1742477756040,28.76,130.4,130.35,7.6744]
[1742477756241,28.76,130.4,130.32,270.86700845]
[1742477756439,7.6749,130.35,130.32,7.6759]
[1742477756644,28.74,130.34,130.32,7.6759]
[1742477756845,28.74,130.34,130.3,17.78700845]
[1742477757440,365.0,130.4,130.32,17.78700845]
[1742477757643,28.8,130.39,130.34,17.78700845]
[1742477757839,0.0578216,130.37,130.34,17.78700845]
[1742477758047,0.0578216,130.37,130.35,7.72702927]
[1742477758243,0.0578216,130.37,130.35,0.05302927]
[1742477758441,0.0578216,130.37,130.36,17.78700845]
[1742477758843,0.0578216,130.37,130.36,25.46090845]
[1742477761247,0.0578216,130.37,130.35,0.05302927]
[1742477761248,0.0578216,130.37,130.35,7.72732927]
[1742477761543,0.0578216,130.37,130.35,0.05302927]
[1742477761738,0.0578216,130.37,130.3,17.78700845]
[1742477761941,2.1245216,130.37,130.3,17.78700845]
[1742477762242,2.1245216,130.37,130.28,272.97450845]
[1742477762549,17.78700845,130.36,130.28,270.90700845]
[1742477762746,7.6764,130.32,130.29,7.6777]
[1742477762944,28.82,130.32,130.28,270.90700845]
[1742477763138,7.6781,130.29,130.26,17.78700845]
[1742477763344,28.88,130.29,130.24,60.41739589]
[1742477763750,7.679,130.28,130.25,7.6801]
[1742477764045,28.88,130.29,130.24,60.41739589]
[1742477764236,2.0667,130.31,130.24,42.63038744]
[1742477764446,28.9,130.34,130.28,17.78700845]
[1742477764649,4.691e-05,130.29,130.25,33.08138327]
[1742477764839,28.9,130.34,130.32,7.6758]
[1742477765146,28.9,130.34,130.29,28.49407549]
[1742477765944,0.05024045,130.33,130.3,0.05370074]
[1742477766950,0.05024045,130.33,130.31,7.6766]
[1742477767142,0.05024045,130.33,130.3,0.05370074]
[1742477767849,0.05024045,130.33,130.32,7.6763]
[1742477769245,0.05024045,130.33,130.3,29.03370074]
[1742477769651,0.05024045,130.33,130.3,0.05370074]
[1742477769949,0.05024045,130.33,130.31,7.6765]
[1742477770352,0.05024045,130.33,130.3,7.73090074]
[1742477770545,0.05024045,130.33,130.3,0.05370074]
[1742477770850,0.05024045,130.33,130.31,7.6764]
[1742477771352,0.05024045,130.33,130.3,0.05370074]
[1742477771957,0.05024045,130.33,130.3,7.73080074]
[1742477772253,0.05024045,130.33,130.3,0.05370074]
[1742477772846,29.09024045,130.33,130.3,0.05370074]
[1742477773253,36.76624045,130.33,130.3,0.05370074]
[1742477773556,36.76624045,130.33,130.3,7.73070074]
[1742477773759,36.76624045,130.33,130.3,0.05370074]
[1742477774058,29.09024045,130.33,130.31,7.6765]
[1742477774260,29.09024045,130.33,130.3,0.05370074]
[1742477774451,0.05024045,130.33,130.3,0.05370074]
[1742477774653,0.05024045,130.33,130.31,7.6766]
[1742477774855,0.05024045,130.33,130.3,0.05370074]
[1742477776262,0.05024045,130.33,130.32,7.6763]
[1742477776857,7.72604045,130.33,130.31,7.6765]
[1742477777054,0.05024045,130.33,130.3,0.05370074]
[1742477777250,0.05024045,130.33,130.31,7.6768]
[1742477777455,0.05024045,130.33,130.3,0.05370074]
[1742477777954,0.05024045,130.33,130.3,28.54777623]
[1742477778160,0.05024045,130.33,130.32,7.6763]
[1742477779360,365.0,130.39,130.37,7.6733]
[1742477779567,36.6722,130.39,130.37,7.6733]
[1742477779763,2.1067,130.41,130.33,28.49407549]
[1742477780062,7.6725,130.39,130.33,28.49407549]
[1742477780563,0.04995579,130.37,130.35,0.04876229]
[1742477780757,31.0933,130.42,130.36,29.0]
[1742477781158,31.0933,130.42,130.34,29.02]
[1742477781364,31.0933,130.42,130.33,28.49407549]
[1742477781664,31.0933,130.42,130.34,7.6749]
[1742477781865,0.05529376,130.39,130.36,0.05451523]
[1742477782059,29.0,130.38,130.36,0.05451523]
[1742477782868,0.05529376,130.39,130.36,0.05451523]
[1742477783360,0.05529376,130.39,130.38,7.6728]
[1742477784552,0.05529376,130.39,130.37,7.6731]
[1742477785363,0.05529376,130.39,130.38,7.6728]
[1742477785661,0.05529376,130.39,130.36,19.89079726]
[1742477786252,0.05529376,130.39,130.36,17.84639726]
[1742477786562,7.72779376,130.39,130.36,25.51999726]
[1742477786963,0.05529376,130.39,130.36,25.51999726]
[1742477787261,7.72779376,130.39,130.36,25.51999726]
[1742477787457,0.05529376,130.39,130.36,17.84639726]
[1742477787657,7.72769376,130.39,130.36,17.84639726]
[1742477788059,0.05529376,130.39,130.37,7.673]
[1742477788260,0.05529376,130.39,130.36,17.84639726]
[1742477788461,0.05529376,130.39,130.37,7.673]
[1742477788863,0.05529376,130.39,130.36,17.84639726]
[1742477789359,0.05529376,130.39,130.36,0.05451523]
[1742477789659,29.1,130.38,130.36,0.05451523]
[1742477789864,7.6733,130.37,130.36,0.05451523]
[1742477790063,29.1,130.38,130.36,0.05451523]
[1742477790664,7.6733,130.37,130.36,0.05451523]
[1742477791162,29.1,130.38,130.36,0.05451523]
[1742477791463,7.6733,130.37,130.36,0.05451523]
[1742477792363,29.1,130.38,130.36,0.05451523]
[1742477792857,7.6733,130.37,130.36,0.05451523]
[1742477793560,31.1552,130.38,130.3,301.99588203]
[1742477793963,38.8282,130.38,130.32,17.79188203]
[1742477794266,31.1552,130.38,130.34,17.79188203]
[1742477794564,38.8282,130.38,130.34,17.79188203]
[1742477794859,0.05811168,130.37,130.35,0.05184862]
[1742477795069,0.05811168,130.37,130.36,7.6738]
[1742477795561,0.05811168,130.37,130.36,25.46568203]
[1742477795761,0.05811168,130.37,130.36,7.6738]
[1742477795965,0.05811168,130.37,130.35,0.05184862]
[1742477796161,7.73171168,130.37,130.35,0.05184862]
[1742477796361,0.05811168,130.37,130.35,0.05184862]
[1742477796562,7.6739,130.36,130.35,0.05184862]
[1742477797665,7.6761,130.33,130.3,25.46908203]
[1742477797869,29.04,130.37,130.3,7.6772]
[1742477798060,7.6761,130.33,130.29,282.2]
[1742477798269,29.04,130.34,130.29,282.2]
[1742477798567,0.05459086,130.33,130.3,0.04866416]
[1742477798763,0.05459086,130.33,130.31,7.6766]
[1742477799067,0.05459086,130.33,130.3,0.04866416]
[1742477799264,0.05459086,130.33,130.31,7.6769]
[1742477799567,7.73039086,130.33,130.31,7.6769]
[1742477799867,7.73039086,130.33,130.3,7.72576416]
[1742477800068,0.05459086,130.33,130.3,0.04866416]
[1742477800961,0.05459086,130.33,130.3,7.72576416]
[1742477801363,0.05459086,130.33,130.3,0.04866416]
[1742477801667,0.05459086,130.33,130.3,7.72576416]
[1742477801866,7.6769,130.31,130.3,0.04866416]
[1742477802666,36.6369,130.31,130.3,0.04866416]
[1742477803273,28.96,130.31,130.26,7.6795]
[1742477803569,28.96,130.31,130.24,299.93188203]
[1742477803770,28.96,130.31,130.24,270.99188203]
[1742477803973,28.96,130.31,130.26,17.79188203]
[1742477804369,28.96,130.31,130.28,17.79188203]
[1742477804565,0.05013436,130.3,130.28,17.79188203]
[1742477804769,0.05013436,130.3,130.29,7.6781]
[1742477805276,0.05013436,130.3,130.28,25.47008203]
[1742477805472,0.05013436,130.3,130.28,17.79188203]
[1742477806573,0.05013436,130.3,130.29,7.6781]
[1742477808472,28.9,130.33,130.32,7.6763]
[1742477809276,36.5757,130.33,130.3,17.79188203]
[1742477809477,28.9,130.33,130.3,17.79188203]
[1742477809674,28.94863521,130.33,130.3,17.84188505]
[1742477810584,28.94863521,130.33,130.32,7.6763]
[1742477811178,28.94863521,130.33,130.31,7.6766]
[1742477811378,36.62453521,130.33,130.3,17.84188505]
[1742477811777,7.6763,130.32,130.3,25.51918505]
[1742477812588,7.6769,130.31,130.3,0.05000302]
[1742477813383,7.679,130.28,130.24,299.87188203]
[1742477813883,7.679,130.28,130.24,270.99188203]
[1742477814079,28.88,130.3,130.24,270.99188203]
[1742477814586,0.0567609,130.28,130.26,0.05089042]
[1742477814890,0.0567609,130.28,130.27,7.6792]
[1742477818182,28.84,130.32,130.31,7.6769]
[1742477818389,4.0254,130.36,130.31,17.79188203]
[1742477819189,4.0254,130.36,130.29,28.84]
[1742477819393,7.6751,130.34,130.32,0.04997699]
[1742477819689,36.4951,130.34,130.32,0.04997699]
[1742477819891,7.6757,130.33,130.32,0.04997699]
[1742477820292,30.9401,130.34,130.27,46.61188203]
[1742477820480,7.6767,130.32,130.27,46.61188203]
[1742477820882,7.6767,130.32,130.29,7.6778]
[1742477821088,7.676,130.33,130.27,46.61188203]
[1742477821391,0.05310929,130.31,130.3,7.6775]
[1742477824394,28.86,130.35,130.29,17.84799718]
[1742477824595,28.86,130.35,130.31,17.79188203]
[1742477824791,30.8496,130.36,130.31,17.79188203]
[1742477825094,28.84,130.37,130.35,7.6745]
[1742477825592,28.84,130.37,130.35,0.04874754]
[1742477825593,0.05182019,130.37,130.35,0.04874754]
[1742477826094,0.05182019,130.37,130.35,17.84062957]
[1742477826696,0.05182019,130.37,130.36,7.6739]
[1742477827088,10.53768114,130.42,130.36,28.9]
[1742477827291,10.53768114,130.42,130.41,7.671]
[1742477827491,10.53768114,130.42,130.39,17.79188203]
[1742477827691,10.53768114,130.42,130.37,17.79188203]
[1742477827892,7.6716,130.41,130.38,7.6724]
[1742477828093,30.9789,130.43,130.37,17.79188203]
[1742477828292,0.054321,130.41,130.38,0.05592426]
[1742477828497,7.6722,130.39,130.38,0.05592426]
[1742477829491,7.6746,130.35,130.31,271.03188203]
[1742477829792,28.88,130.36,130.32,7.676]
[1742477829997,28.88,130.36,130.31,271.03188203]
[1742477830497,0.0496402,130.35,130.32,0.05819625]
[1742477831196,7.6757,130.33,130.32,0.05819625]
[1742477831896,36.5157,130.33,130.32,0.05819625]
[1742477832096,7.677,130.31,130.27,17.79188203]
[1742477832299,28.84,130.33,130.27,17.79188203]
[1742477832493,28.84,130.33,130.26,253.22]
[1742477832992,7.6777,130.3,130.27,7.679]
[1742477833194,28.84,130.33,130.26,253.22]
[1742477833391,0.05442816,130.3,130.27,0.05895258]
[1742477834094,0.05442816,130.3,130.27,7.73775258]
[1742477834594,7.73202816,130.3,130.27,7.73785258]
[1742477834795,28.87442816,130.3,130.27,0.05895258]
[1742477834995,28.87442816,130.3,130.27,7.73775258]
[1742477835895,36.55212816,130.3,130.27,7.73775258]
[1742477836195,28.87442816,130.3,130.28,7.6783]
[1742477836393,28.87442816,130.3,130.27,0.05895258]
[1742477837101,28.87442816,130.3,130.28,7.6786]
[1742477837403,28.87442816,130.3,130.27,7.73795258]
[1742477837598,28.87442816,130.3,130.27,0.05895258]
[1742477838092,36.55212816,130.3,130.27,7.73795258]
[1742477838696,28.87442816,130.3,130.28,7.6785]
[1742477838991,28.87442816,130.3,130.27,0.05895258]
[1742477839392,7.6786,130.28,130.27,0.05895258]
[1742477839990,7.6784,130.29,130.27,0.05895258]
[1742477840191,28.87442816,130.3,130.27,0.05895258]
[1742477840596,7.6786,130.28,130.27,0.05895258]
[1742477841304,7.6784,130.29,130.27,0.05895258]
[1742477841504,28.87442816,130.3,130.27,0.05895258]
[1742477842405,7.6784,130.29,130.27,0.05895258]
[1742477842600,28.87442816,130.3,130.27,0.05895258]
[1742477843009,7.6786,130.28,130.27,0.05895258]
[1742477844703,19.96398203,130.29,130.21,253.24]
[1742477844902,28.72,130.28,130.21,253.24]
[1742477845105,7.6795,130.27,130.22,17.79188203]
[1742477845301,28.72,130.28,130.23,7.6812]
[1742477845803,0.05359598,130.27,130.24,0.05914761]
[1742477847708,0.05359598,130.27,130.26,7.6798]
[1742477849004,0.05359598,130.27,130.24,17.85102964]
[1742477849405,0.05359598,130.27,130.26,7.6798]
[1742477849898,0.05359598,130.27,130.25,7.6801]
[1742477850306,0.05359598,130.27,130.24,17.85102964]
[1742477851012,0.05359598,130.27,130.26,7.6798]